Workbook

Sheet Spreadsheet10.1
M9: 1 | N9: 2 | O9: 3 | P9: 4 | Q9: 5 | R9: 6 | S9: 7
B10: 1 | C10: AAA | D10: AA | E10: A | F10: BBB | G10: BB | H10: B | I10: CCC | J10: Def | M10: =TRANSPOSE(B11:B17) -> AAA | N10: AA | O10: A | P10: BBB | Q10: BB | R10: B | S10: CCC
B11: AAA | C11: 0.934 | D11: 0.0594 | E11: 0.0064 | F11: 0 | G11: 0.0002 | H11: 0 | I11: 0 | J11: =1-SUM(C11:I11) -> 0 | L11: 1 | M11: =OFFSET($J$10,($L11-1)*9+M$9,0,1,1) -> 0 | N11: =OFFSET($J$10,($L11-1)*9+N$9,0,1,1) -> 0.0002 | O11: 0 | P11: 0.0015 | Q11: 0.0129 | R11: 0.0681 | S11: 0.2405
B12: AA | C12: 0.0161 | D12: 0.9055 | E12: 0.0746 | F12: 0.0026 | G12: 0.0009 | H12: 0.0001 | I12: 0 | J12: 0.0002 | L12: =L11+1 -> 2 | M12: =OFFSET($J$10,($L12-1)*9+M$9,0,1,1) -> 1.446e-05 | N12: 0.00040342 | O12: 0.00023783 | P12: 0.00411767 | Q12: 0.0287908 | R12: 0.1308747 | S12: 0.40997823
B13: A | C13: 0.0007 | D13: 0.0228 | E13: 0.9244 | F13: 0.0463 | G13: 0.0045 | H13: 0.0012 | I13: 0.0001 | J13: 0 | L13: =L12+1 -> 3 | M13: 4.474906e-05 | N13: 0.000632976866 | O13: 0.000747312334 | P13: 0.007785110005 | Q13: 0.04685440206 | R13: 0.1880041783 | S13: 0.5301603639
B14: BBB | C14: 0.0005 | D14: 0.0026 | E14: 0.0551 | F14: 0.8848 | G14: 0.0476 | H14: 0.0071 | I14: 0.0008 | J14: 0.0015 | L14: 4 | M14: 9.354812723e-05 | N14: 0.0009108411778 | O14: 0.001555195171 | P14: 0.01242033785 | Q14: 0.06640976847 | R14: 0.2395817007 | S14: 0.6160503252
B15: BB | C15: 0.0002 | D15: 0.0005 | E15: 0.0042 | F15: 0.0516 | G15: 0.8691 | H15: 0.0591 | I15: 0.0024 | J15: 0.0129 | L15: 5 | M15: 0.0001647131196 | N15: 0.001258310211 | O15: 0.002681463753 | P15: 0.01793259646 | Q15: 0.08690242445 | R15: 0.2859287458 | S15: 0.6780201648
B16: B | C16: 0 | D16: 0.0004 | E16: 0.0013 | F16: 0.0054 | G16: 0.0635 | H16: 0.8422 | I16: 0.0191 | J16: 0.0681 | L16: 6 | M16: 0.0002631275332 | N16: 0.001695518781 | O16: 0.004139806503 | P16: 0.0242269296 | Q16: 0.1078897806 | R16: 0.327478504 | S16: 0.7232485287
B17: CCC | C17: 0 | D17: 0 | E17: 0 | F17: 0.0062 | G17: 0.0205 | H17: 0.0408 | I17: 0.692 | J17: 0.2405 | L17: 7 | M17: 0.0003945476493 | N17: 0.002241196844 | O17: 0.005938189059 | P17: 0.03120788031 | Q17: 0.1290251815 | R17: 0.3647043294 | S17: 0.7567110523
L18: 8 | M18: 0.0005654440433 | N18: 0.002912478449 | O18: 0.008079491914 | P18: 0.03878231933 | Q18: 0.1500423842 | R18: 0.3980774051 | S18: 0.7818624899
B19: =B10+1 -> 2 | C19: AAA | D19: AA | E19: A | F19: BBB | G19: BB | H19: B | I19: CCC | J19: Def | L19: 9 | M19: 0.0007828431813 | N19: 0.003724762898 | O19: 0.01056217389 | P19: 0.04686148836 | Q19: 0.1707413516 | R19: 0.4280431484 | S19: 0.8011067204
B20: AAA | C20: =MMULT(C11:I17,$C$11:$I$17) -> 0.87331686 | D20: 0.10941232 | E20: 0.01632584 | F20: 0.00046108 | G20: 0.00044288 | H20: 2.544e-05 | I20: 1.12e-06 | J20: =1-SUM(C20:I20) -> 1.446e-05 | L20: 10 | M20: 0.001054172631 | N20: 0.004691626152 | O20: 0.01338093157 | P20: 0.05536237656 | Q20: 0.1909757477 | R20: 0.4550094265 | S20: 0.8161207499
B21: AA | C21: 0.02966965 | D21: 0.82259472 | E21: 0.13676075 | F21: 0.00815574 | G21: 0.00206617 | H21: 0.00033594 | I21: 1.361e-05 | J21: =1-SUM(C21:I21) -> 0.00040342
B22: A | C22: 0.00169201 | D22: 0.04188641 | E22: 0.85879231 | F22: 0.08406454 | G22: 0.01037354 | H22: 0.00272096 | I22: 0.0002324 | J22: 0.00023783
B23: BBB | C23: 0.00099935 | D23: 0.0059674 | E23: 0.10009323 | F23: 0.78792839 | G23: 0.08420328 | H23: 0.01517388 | I23: 0.0015168 | J23: 0.00411767
B24: BB | C24: 0.00039741 | D24: 0.00115274 | E24: 0.01049127 | F24: 0.09103102 | G24: 0.76161241 | H24: 0.1016072 | I24: 0.00491715 | J24: 0.0287908
B25: B | C25: 2.275e-05 | D25: 0.00077451 | E25: 0.00289066 | F25: 0.01278205 | G25: 0.10932235 | H25: 0.71387291 | I25: 0.02946007 | J25: 0.1308747
B26: CCC | C26: 7.2e-06 | D26: 4.269e-05 | E26: 0.00048076 | F26: 0.01105428 | G26: 0.03488847 | H26: 0.06385093 | I26: 0.47969744 | J26: 0.40997823
B28: =B19+1 -> 3 | C28: AAA | D28: AA | E28: A | F28: BBB | G28: BB | H28: B | I28: CCC | J28: Def
B29: AAA | C29: =MMULT(C20:I26,$C$11:$I$17) -> 0.8174512328 | D29: 0.1513215368 | E29: 0.02887029215 | F29: 0.001471318936 | G29: 0.000755093556 | H29: 8.145138e-05 | I29: 4.325304e-06 | J29: =1-SUM(C29:I29) -> 4.474906e-05
B30: AA | C30: 0.04105545172 | D30: 0.7497624137 | E30: 0.1884355851 | F30: 0.01579548058 | G30: 0.003567225319 | H30: 0.000709872729 | I30: 4.0994049e-05 | J30: =1-SUM(C30:I30) -> 0.000632976866
B31: A | C31: 0.002899970136 | D31: 0.05783395728 | E31: 0.8016822287 | F31: 0.1148027023 | G31: 0.01709726244 | H31: 0.004545748293 | I31: 0.000390818495 | J31: 0.000747312334
B32: BBB | C32: 0.001510338152 | D32: 0.00984175274 | E32: 0.1367659798 | F32: 0.7062451036 | G32: 0.1121370879 | H32: 0.02353274121 | I32: 0.002181886615 | J32: 0.007785110005
B33: BB | C33: 0.000594921935 | D33: 0.001964742917 | E33: 0.0181333385 | F33: 0.120911355 | G33: 0.6728516085 | H33: 0.131444522 | I33: 0.007245109047 | J33: 0.04685440206
B34: B | C34: 6.3997068e-05 | D34: 0.001142020872 | E34: 0.004821529758 | F34: 0.02112400853 | G34: 0.1415690508 | H34: 0.6089809853 | I34: 0.03429422937 | J34: 0.1880041783
B35: CCC | C35: 2.0253475e-05 | D35: 0.000121770538 | E35: 0.001286273909 | F35: 0.01492236133 | G35: 0.04473828786 | H35: 0.07548788394 | I35: 0.3332628051 | J35: 0.5301603639
B37: =B28+1 -> 4 | C37: AAA | D37: AA | E37: A | F37: BBB | G37: BB | H37: B | I37: CCC | J37: Def
B38: AAA | C38: =MMULT(C29:I35,$C$11:$I$17) -> 0.7659568241 | D38: 0.186240733 | E38: 0.04329231955 | F38: 0.003071382999 | G38: 0.001161143367 | H38: 0.0001736237225 | I38: 1.042514062e-05 | J38: =1-SUM(C38:I38) -> 9.354812723e-05
B39: AA | C39: 0.05055748286 | D39: 0.6856880265 | E39: 0.231271122 | F39: 0.02483794738 | G39: 0.005429015092 | H39: 0.001223597241 | I39: 8.196773477e-05 | J39: =1-SUM(C39:I39) -> 0.0009108411778
B40: A | C40: 0.004261697183 | D40: 0.07112811531 | E40: 0.7518113721 | F40: 0.1397548754 | G40: 0.0242807068 | H40: 0.006637724074 | I40: 0.0005703140055 | J40: 0.001555195171
B41: BBB | C41: 0.002040394208 | D41: 0.01402140444 | E41: 0.1665860062 | F41: 0.6371703993 | G41: 0.1332392743 | H41: 0.0317150411 | I41: 0.002807142586 | J41: 0.01242033785
B42: BB | C42: 0.0007950087844 | D42: 0.002931226328 | E42: 0.02657190573 | F42: 0.1433009119 | G42: 0.5991094526 | H42: 0.1516441341 | I42: 0.00923759211 | J42: 0.06640976847
B43: B | C43: 0.0001204106828 | D43: 0.001517131546 | E43: 0.007092824611 | F43: 0.02972281339 | G43: 0.1634392266 | H43: 0.5228056018 | I43: 0.03572029062 | J43: 0.2395817007
B44: CCC | C44: 3.818648128e-05 | D44: 0.0002321557607 | E44: 0.002306502473 | F44: 0.01804553601 | G44: 0.05122362039 | H44: 0.07992455559 | I44: 0.2321791181 | J44: 0.6160503252
B46: =B37+1 -> 5 | C46: AAA | D46: AA | E46: A | F46: BBB | G46: BB | H46: B | I46: CCC | J46: Def
B47: AAA | C47: =MMULT(C38:I44,$C$11:$I$17) -> 0.718434222 | D47: 0.2151345196 | E47: 0.05898943827 | F47: 0.00526713718 | G47: 0.001682209815 | H47: 0.0003076564939 | I47: 2.010349285e-05 | J47: =1-SUM(C47:I47) -> 0.0001647131196
B48: AA | C48: 0.05843566078 | D48: 0.6292343867 | E48: 0.2666558833 | F48: 0.03475451046 | G48: 0.007647972845 | H48: 0.001877156248 | I48: 0.0001361194861 | J48: =1-SUM(C48:I48) -> 0.001258310211
B49: A | C49: 0.005726589365 | D49: 0.08217911063 | E49: 0.7081189663 | F49: 0.1599411775 | G49: 0.03163590008 | H49: 0.008950095872 | I49: 0.0007666965555 | J49: 0.002681463753
B50: BBB | C50: 0.002593316061 | D50: 0.01835169077 | E50: 0.1907600829 | F50: 0.5785815691 | G50: 0.1489616802 | H50: 0.03942459532 | I50: 0.003394469133 | J50: 0.01793259646
B51: BB | C51: 0.000999803629 | D51: 0.004040083163 | E51: 0.03539610451 | F51: 0.1598207464 | G51: 0.5374482925 | H51: 0.164548568 | I51: 0.01084397731 | J51: 0.08690242445
B52: B | C52: 0.0001894036249 | D52: 0.001910752579 | E52: 0.009674374764 | F52: 0.03810916776 | G52: 0.1774235666 | H52: 0.4516432191 | I52: 0.03512076978 | J52: 0.2859287458
B53: CCC | C53: 6.028592508e-05 | D53: 0.0003695736007 | E53: 0.003463044261 | F53: 0.02058832687 | G53: 0.05522289303 | H53: 0.07994359902 | I53: 0.1623321125 | J53: 0.6780201648
B55: =B46+1 -> 6 | C55: AAA | D55: AA | E55: A | F55: BBB | G55: BB | H55: B | I55: CCC | J55: Def
B56: AAA | C56: =MMULT(C47:I53,$C$11:$I$17) -> 0.6745254917 | D56: 0.2388389182 | E56: 0.07547453541 | F56: 0.008039511733 | G56: 0.002335432973 | H56: 0.0004890445736 | I56: 3.393781321e-05 | J56: =1-SUM(C56:I56) -> 0.0002631275332
B57: AA | C57: 0.06491514677 | D57: 0.5794175061 | E57: 0.2957611073 | F57: 0.04513858364 | G57: 0.01020110732 | H57: 0.002668157385 | I57: 0.0002028727002 | J57: =1-SUM(C57:I57) -> 0.001695518781
B58: A | C58: 0.007253699193 | D58: 0.09133370156 | E58: 0.669709649 | F58: 0.1762010241 | G58: 0.03895365104 | H58: 0.01143227669 | I58: 0.0009761918463 | J58: 0.004139806503
B59: BBB | C59: 0.003170234601 | D59: 0.02271539162 | E59: 0.2102809895 | F59: 0.5287292398 | G59: 0.1604515829 | H59: 0.04648420023 | I59: 0.003941431707 | J59: 0.0242269296
B60: BB | C60: 0.001211039233 | D60: 0.005274792337 | E60: 0.04430526705 | F60: 0.1717468671 | G60: 0.4855380327 | H60: 0.171966039 | I60: 0.01206818205 | J60: 0.1078897806
B61: B | C61: 0.0002689774617 | D61: 0.002330465687 | E61: 0.01251887667 | F61: 0.04598356133 | G61: 0.1854574306 | H61: 0.3925749547 | I61: 0.03338722951 | J61: 0.327478504
B62: CCC | C62: 8.602006202e-05 | D62: 0.0005303058245 | E62: 0.004699473776 | F62: 0.02266550727 | G62: 0.05739437591 | H62: 0.077365692 | I62: 0.1140100965 | J62: 0.7232485287
B64: =B55+1 -> 7 | C64: AAA | D64: AA | E64: A | F64: BBB | G64: BB | H64: B | I64: CCC | J64: Def
B65: AAA | C65: =MMULT(C56:I62,$C$11:$I$17) -> 0.6339094349 | D65: 0.2580785401 | E65: 0.09235642865 | F65: 0.01135217175 | G65: 0.003133651145 | H65: 0.000722815959 | I65: 5.240982016e-05 | J65: =1-SUM(C65:I65) -> 0.0003945476493
B66: AA | C66: 0.07019101122 | D66: 0.5353853929 | E66: 0.3195750197 | F66: 0.05568088659 | G66: 0.01305334961 | H66: 0.003591623822 | I66: 0.0002815193498 | J66: =1-SUM(C66:I66) -> 0.002241196844
B67: A | C67: 0.008810115638 | D67: 0.09888508889 | E67: 0.6358266611 | F67: 0.1892254856 | G67: 0.04608509286 | H67: 0.01403406505 | I67: 0.001195301789 | J67: 0.005938189059
B68: BBB | C68: 0.003770368551 | D68: 0.0270250211 | E68: 0.2259659116 | F68: 0.4861694545 | G68: 0.168615871 | H68: 0.05280107873 | I68: 0.004444414255 | J68: 0.03120788031
B69: BB | C69: 0.001430029528 | D69: 0.006616517567 | E69: 0.05308310699 | F69: 0.1800838782 | G69: 0.4415278595 | H69: 0.1752905741 | I69: 0.01294285263 | J69: 0.1290251815
B70: B | C70: 0.0003575919272 | D70: 0.002780960286 | E70: 0.01557098666 | F70: 0.05316844726 | G70: 0.1890413044 | H70: 0.343291099 | I70: 0.03108528102 | J70: 0.3647043294
B71: CCC | C71: 0.0001149819222 | D71: 0.0007110233016 | E71: 0.00597480613 | F71: 0.0243595924 | G71: 0.05823190078 | H71: 0.07336762286 | I71: 0.08052902035 | J71: 0.7567110523
B73: =B64+1 -> 8 | C73: AAA | D73: AA | E73: A | F73: BBB | G73: BB | H73: B | I73: CCC | J73: Def
B74: AAA | C74: =MMULT(C65:I71,$C$11:$I$17) -> 0.596297429 | D74: 0.2734814367 | E74: 0.1093235678 | F74: 0.01515743297 | G74: 0.004085449303 | H74: 0.001013328692 | I74: 7.591152338e-05 | J74: =1-SUM(C74:I74) -> 0.0005654440433
B75: AA | C75: 0.07443226293 | D75: 0.4963998634 | E75: 0.338931631 | F75: 0.06614946691 | G75: 0.01616288825 | H75: 0.004640167392 | I75: 0.0003712416554 | J75: =1-SUM(C75:I75) -> 0.002912478449
B76: A | C76: 0.01036960636 | D76: 0.1050812592 | E76: 0.6058295038 | F76: 0.1995837709 | G76: 0.05292733272 | H76: 0.01670826834 | I76: 0.001420766758 | J76: 0.008079491914
B77: BBB | C77: 0.004391611106 | D77: 0.03121660823 | E77: 0.2384878506 | F77: 0.4497084802 | G77: 0.1741716217 | H77: 0.0583412633 | I77: 0.004900245514 | J77: 0.03878231933
B78: BB | C78: 0.001657679197 | D78: 0.008045593493 | E78: 0.06157768494 | F78: 0.1856228185 | G78: 0.4039452501 | H78: 0.1755950433 | I78: 0.01351354626 | J78: 0.1500423842
B79: B | C79: 0.0004540564958 | D79: 0.00326449405 | E79: 0.01877340165 | F79: 0.0595726413 | G79: 0.1893354926 | H79: 0.3019568434 | I79: 0.02856566545 | J79: 0.3980774051
B80: CCC | C80: 0.0001468491311 | D80: 0.0009086850453 | E80: 0.007259054444 | F80: 0.02573208071 | G80: 0.05810610008 | H80: 0.06869749531 | I80: 0.0572872454 | J80: 0.7818624899
B82: =B73+1 -> 9 | C82: AAA | D82: AA | E82: A | F82: BBB | G82: BB | H82: B | I82: CCC | J82: Def
B83: AAA | C83: =MMULT(C74:I80,$C$11:$I$17) -> 0.5614297721 | D83: 0.2855919429 | E83: 0.1261303756 | F83: 0.01940078142 | G83: 0.00519540919 | H83: 0.001364126867 | I83: 0.0001047487337 | J83: =1-SUM(C83:I83) -> 0.0007828431813
B84: AA | C84: 0.07778533083 | D84: 0.4618209201 | E84: 0.354534948 | F84: 0.07637358612 | G84: 0.01948498056 | H84: 0.005804341491 | I84: 0.0004711300911 | J84: =1-SUM(C84:I84) -> 0.003724762898
B85: A | C85: 0.01191147862 | D85: 0.1101320123 | E85: 0.5791753021 | F85: 0.2077449216 | G85: 0.05941231294 | H85: 0.01941222455 | I85: 0.001649574087 | J85: 0.01056217389
B86: BBB | C86: 0.005030982226 | D86: 0.03524468781 | E86: 0.2484013361 | F86: 0.418357894 | G86: 0.1776859739 | H86: 0.0631107221 | I86: 0.005306915486 | J86: 0.04686148836
B87: BB | C87: 0.001894511264 | D87: 0.009542552239 | E87: 0.06968588329 | F87: 0.1889866073 | G87: 0.3716164481 | H87: 0.1737032823 | I87: 0.01382936396 | J87: 0.1707413516
B88: B | C88: 0.0005574419216 | D88: 0.003781343227 | E88: 0.0220707752 | F88: 0.06516495471 | G88: 0.1872344992 | H88: 0.2671090805 | I88: 0.02603875683 | J88: 0.4280431484
B89: CCC | C89: 0.0001813555162 | D89: 0.001120479046 | E89: 0.008530187678 | F89: 0.02683062397 | G89: 0.05729505104 | H89: 0.06381992018 | I89: 0.04111566219 | J89: 0.8011067204
B91: =B82+1 -> 10 | C91: AAA | D91: AA | E91: A | F91: BBB | G91: BB | H91: B | I91: CCC | J91: Def
B92: AAA | C92: =MMULT(C83:I89,$C$11:$I$17) -> 0.5290724682 | D92: 0.2948817907 | E92: 0.1425858058 | F92: 0.02402428568 | G92: 0.006464482121 | H92: 0.001777851272 | I92: 0.0001391435916 | J92: =1-SUM(C92:I92) -> 0.001054172631
B93: AA | C93: 0.08037707406 | D93: 0.4310933241 | E93: 0.3669793398 | F93: 0.08623074093 | G93: 0.02297461631 | H93: 0.007073077353 | I93: 0.0005802012626 | J93: =1-SUM(C93:I93) -> 0.004691626152
B94: A | C94: 0.01341962406 | D94: 0.1142148837 | E94: 0.5554032436 | F94: 0.2140955951 | G94: 0.06549818194 | H94: 0.02210855834 | I94: 0.001878981776 | J94: 0.01338093157
B95: BBB | C95: 0.00568497395 | D95: 0.03907827342 | E95: 0.2561634921 | F95: 0.3912979797 | G95: 0.1796075707 | H95: 0.06714156048 | I95: 0.005663773094 | J95: 0.05536237656
B96: BB | C96: 0.002140705324 | D96: 0.01108880788 | E96: 0.0773413952 | F96: 0.1906657657 | G96: 0.3436038316 | H96: 0.1702460567 | I96: 0.0139376899 | J96: 0.1909757477
B97: B | C97: 0.0006670093006 | D97: 0.004330221781 | E97: 0.02541209614 | F97: 0.0699547898 | G97: 0.1834254094 | H97: 0.237576742 | I97: 0.023624305 | J97: 0.4550094265
B98: CCC | C98: 0.0002182712183 | D98: 0.001343789689 | E98: 0.009772026393 | F98: 0.02769356633 | G98: 0.05600713311 | H98: 0.05901363902 | I98: 0.02983082435 | J98: 0.8161207499

Sheet Spreadsheet10.2
M9: Price CDS
F10: Market Premium | M10: Price CDS
B11: Inputs | F11: Running | G11: Up-front | H11: Hazard Rate | I11: Risky Annuity | J11: Default Leg | K11: MTM | M11: Premium | N11: MTM
B12: Interest Rate | C12: 0.05 | E12: 1Y CDS | F12: 300 | G12: 0 | H12: 0.04944286058 | I12: =SUM($G$32:$G$51) -> 0.9401032802 | J12: =SUM($H$32:$H$51) -> 0.02820309841 | K12: =J12-I12*F12/10000-G12 -> -3.469446952e-18 | M12: 500 | N12: =J12-M12*I12/10000 -> -0.0188020656
B13: Recovery | C13: 0.4 | E13: 2Y CDS | F13: 350 | G13: 0 | H13: 0.06673790361 | I13: =SUM($G$32:$G$71) -> 1.782190418 | J13: =SUM($H$32:$H$71) -> 0.06237666463 | K13: =J13-I13*F13/10000-G13 -> -1.665334537e-16 | M13: 500 | N13: =J13-M13*I13/10000 -> -0.02673285627
E14: 3Y CDS | F14: 400 | G14: 0 | H14: 0.08536330689 | I14: =SUM($G$32:$G$91) -> 2.52295886 | J14: =SUM($H$32:$H$91) -> 0.1009183544 | K14: =J14-I14*F14/10000-G14 -> -1.526556659e-16 | M14: 500 | N14: =J14-M14*I14/10000 -> -0.0252295886
E15: 4Y CDS | F15: 450 | G15: 0 | H15: 0.1059520431 | I15: =SUM($G$32:$G$111) -> 3.161822488 | J15: =SUM($H$32:$H$111) -> 0.142282012 | K15: =J15-I15*F15/10000-G15 -> -5.551115123e-16 | M15: 500 | N15: =J15-M15*I15/10000 -> -0.01580911244
E16: 5Y CDS | F16: 500 | G16: 0 | H16: 0.1294527231 | I16: =SUM($G$32:$G$131) -> 3.70063022 | J16: =SUM($H$32:$H$131) -> 0.185031511 | K16: =J16-I16*F16/10000-G16 -> 0 | M16: 500 | N16: =J16-M16*I16/10000 -> 0
F18: Fair Prem | G18: Def prob | H18: Def prob (approx) | I18: 1Y def prob
E19: 1Y | F19: =J12/I12*10000 -> 300 | G19: =1-D51 -> 0.04824046043 | H19: =1-EXP(-F12/10000/(1-Recovery)) -> 0.0487705755 | I19: =G19 -> 0.04824046043
E20: 2Y | F20: =J13/I13*10000 -> 350 | G20: =1-D71 -> 0.1096857282 | H20: =EXP(-F12/10000/(1-Recovery))-EXP(-2*F13/10000/(1-Recovery)) -> 0.06134765351 | I20: =G20-G19 -> 0.06144526776
E21: 3Y | F21: =J14/I14*10000 -> 400 | G21: =1-D91 -> 0.1825324499 | H21: =EXP(-2*F13/10000/(1-Recovery))-EXP(-3*F14/10000/(1-Recovery)) -> 0.07115101791 | I21: =G21-G20 -> 0.07284672172
E22: 4Y | F22: =J15/I15*10000 -> 450 | G22: =1-D111 -> 0.2647142752 | H22: =EXP(-3*F14/10000/(1-Recovery))-EXP(-4*F15/10000/(1-Recovery)) -> 0.0779125324 | I22: =G22-G21 -> 0.08218182534
E23: 5Y | F23: =J16/I16*10000 -> 500 | G23: =1-D131 -> 0.3539955181 | H23: =EXP(-4*F15/10000/(1-Recovery))-EXP(-5*F16/10000/(1-Recovery)) -> 0.08157759048 | I23: =G23-G22 -> 0.08928124283
C30: Disc Factor | D30: Cumulative Survival Probability | E30: Cumulative Default Probability | F30: Marginal Def Probability | G30: Premiums | H30: Defaults | I30: Accr
B31: 0 | C31: =EXP(-IRate*B31) -> 1 | D31: 1 | E31: =1-D31 -> 0
B32: =B31+0.05 -> 0.05 | C32: 0.9975031224 | D32: =D31*EXP(-0.05*HazardRate1) -> 0.9975309102 | E32: 0.0024690898 | F32: =D31-D32 -> 0.0024690898 | H32: =F32*C32*(1-Recovery) -> 0.001477754871 | I32: 0.05 | J32: =I32*F32 -> 0.00012345449
B33: 0.1 | C33: 0.9950124792 | D33: 0.9950679168 | E33: 0.004932083196 | F33: 0.002462993396 | H33: 0.001470425499 | I33: =I32+0.05 -> 0.1 | J33: =I33*F33 -> 0.0002462993396
B34: 0.15 | C34: 0.9925280548 | D34: 0.9926110048 | E34: 0.007388995239 | F34: 0.002456912044 | H34: 0.001463132479 | I34: =I33+0.05 -> 0.15 | J34: =I34*F34 -> 0.0003685368066
B35: 0.2 | C35: 0.9900498337 | D35: 0.9901601591 | E35: 0.009839840947 | F35: 0.002450845707 | H35: 0.001455875631 | I35: 0.2 | J35: =I35*F35 -> 0.0004901691414
B36: 0.25 | C36: 0.9875778005 | D36: 0.9877153647 | E36: 0.0122846353 | F36: 0.002444794349 | G36: =C36*D36*0.25 -> 0.2438614418 | H36: 0.001448654776 | I36: 0 | J36: =I36*F36 -> 0
B37: 0.3 | C37: 0.9851119396 | D37: 0.9852766068 | E37: 0.01472339323 | F37: 0.002438757932 | H37: 0.001441469734 | I37: 0.05 | J37: =I37*F37 -> 0.0001219378966
B38: 0.35 | C38: 0.9826522357 | D38: 0.9828438704 | E38: 0.01715612965 | F38: 0.00243273642 | H38: 0.001434320329 | I38: 0.1 | J38: 0.000243273642
B39: 0.4 | C39: 0.9801986733 | D39: 0.9804171406 | E39: 0.01958285942 | F39: 0.002426729775 | H39: 0.001427206384 | I39: 0.15 | J39: 0.0003640094663
B40: 0.45 | C40: 0.9777512372 | D40: 0.9779964026 | E40: 0.02200359738 | F40: 0.002420737962 | H40: 0.001420127722 | I40: 0.2 | J40: 0.0004841475923
B41: 0.5 | C41: 0.975309912 | D41: 0.9755816417 | E41: 0.02441835833 | F41: 0.002414760942 | G41: =C41*D41*0.25 -> 0.2378736113 | H41: 0.001413084169 | I41: 0 | J41: 0
B42: 0.55 | C42: 0.9728746826 | D42: 0.973172843 | E42: 0.02682715701 | F42: 0.002408798681 | H42: 0.001406075551 | I42: 0.05 | J42: 0.000120439934
B43: 0.6 | C43: 0.9704455335 | D43: 0.9707699919 | E43: 0.02923000815 | F43: 0.00240285114 | H43: 0.001399101694 | I43: 0.1 | J43: 0.000240285114
B44: 0.65 | C44: 0.9680224498 | D44: 0.9683730736 | E44: 0.03162692643 | F44: 0.002396918285 | H44: 0.001392162426 | I44: 0.15 | J44: 0.0003595377428
B45: 0.7 | C45: 0.9656054163 | D45: 0.9659820735 | E45: 0.03401792651 | F45: 0.002391000079 | H45: 0.001385257576 | I45: 0.2 | J45: 0.0004782000157
B46: 0.75 | C46: 0.9631944177 | D46: 0.963596977 | E46: 0.036403023 | F46: 0.002385096485 | G46: =C46*D46*0.25 -> 0.2320328073 | H46: 0.001378386972 | I46: 0 | J46: 0
B47: 0.8 | C47: 0.9607894392 | D47: 0.9612177695 | E47: 0.03878223046 | F47: 0.002379207467 | H47: 0.001371550445 | I47: 0.05 | J47: 0.0001189603734
B48: 0.85 | C48: 0.9583904655 | D48: 0.9588444365 | E48: 0.04115556345 | F48: 0.00237333299 | H48: 0.001364747826 | I48: 0.1 | J48: 0.000237333299
B49: 0.9 | C49: 0.9559974818 | D49: 0.9564769635 | E49: 0.04352303647 | F49: 0.002367473018 | H49: 0.001357978946 | I49: 0.15 | J49: 0.0003551209527
B50: 0.95 | C50: 0.9536104731 | D50: 0.954115336 | E50: 0.04588466399 | F50: 0.002361627515 | H50: 0.001351243639 | I50: 0.2 | J50: 0.0004723255029
B51: 1 | C51: 0.9512294245 | D51: 0.9517595396 | E51: 0.04824046043 | F51: 0.002355796444 | G51: =C51*D51*0.25 -> 0.2263354198 | H51: 0.001344541738 | I51: 0 | J51: 0
B52: 1.05 | C52: 0.9488543211 | D52: =D51*EXP(-0.05*HazardRate2) -> 0.9485889107 | E52: 0.05141108928 | F52: 0.003170628851 | H52: 0.001805078931 | I52: 0.05 | J52: 0.0001585314425
B53: 1.1 | C53: 0.946485148 | D53: 0.9454288443 | E53: 0.05457115571 | F53: 0.003160066427 | H53: 0.001794573564 | I53: 0.1 | J53: 0.0003160066427
B54: 1.15 | C54: 0.9441218904 | D54: 0.9422793051 | E54: 0.0577206949 | F54: 0.003149539191 | H54: 0.001784129337 | I54: 0.15 | J54: 0.0004724308786
B55: 1.2 | C55: 0.9417645336 | D55: 0.9391402581 | E55: 0.06085974192 | F55: 0.003139047024 | H55: 0.001773745894 | I55: 0.2 | J55: 0.0006278094048
B56: 1.25 | C56: 0.9394130628 | D56: 0.9360116683 | E56: 0.06398833173 | F56: 0.00312858981 | G56: =C56*D56*0.25 -> 0.219825397 | H56: 0.001763422881 | I56: 0 | J56: 0
B57: 1.3 | C57: 0.9370674634 | D57: 0.9328935008 | E57: 0.06710649917 | F57: 0.003118167433 | H57: 0.001753159948 | I57: 0.05 | J57: 0.0001559083716
B58: 1.35 | C58: 0.9347277206 | D58: 0.9297857211 | E58: 0.07021427894 | F58: 0.003107779776 | H58: 0.001742956743 | I58: 0.1 | J58: 0.0003107779776
B59: 1.4 | C59: 0.9323938199 | D59: 0.9266882943 | E59: 0.07331170566 | F59: 0.003097426723 | H59: 0.001732812921 | I59: 0.15 | J59: 0.0004646140085
B60: 1.45 | C60: 0.9300657467 | D60: 0.9236011862 | E60: 0.07639881382 | F60: 0.003087108161 | H60: 0.001722728134 | I60: 0.2 | J60: 0.0006174216321
B61: 1.5 | C61: 0.9277434863 | D61: 0.9205243622 | E61: 0.0794756378 | F61: 0.003076823972 | G61: =C61*D61*0.25 -> 0.2135026203 | H61: 0.001712702039 | I61: 0 | J61: 0
B62: 1.55 | C62: 0.9254270244 | D62: 0.9174577882 | E62: 0.08254221184 | F62: 0.003066574044 | H62: 0.001702734296 | I62: 0.05 | J62: 0.0001533287022
B63: 1.6 | C63: =EXP(-IRate*B63) -> 0.9231163464 | D63: 0.9144014299 | E63: 0.0855985701 | F63: 0.003056358262 | H63: 0.001692824563 | I63: 0.1 | J63: 0.0003056358262
B64: 1.65 | C64: 0.9208114379 | D64: 0.9113552534 | E64: 0.08864474662 | F64: =D63-D64 -> 0.003046176512 | H64: =F64*C64*(1-Recovery) -> 0.001682972504 | I64: 0.15 | J64: 0.0004569264768
B65: 1.7 | C65: 0.9185122844 | D65: 0.9083192247 | E65: 0.0916807753 | F65: 0.003036028681 | H65: 0.001673177784 | I65: 0.2 | J65: 0.0006072057362
B66: 1.75 | C66: 0.9162188717 | D66: 0.90529331 | E66: 0.09470668995 | F66: 0.003025914656 | G66: =C66*D66*0.25 -> 0.2073617038 | H66: 0.001663440067 | I66: 0 | J66: 0
B67: 1.8 | C67: 0.9139311853 | D67: 0.9022774757 | E67: 0.09772252428 | F67: 0.003015834323 | H67: 0.001653759023 | I67: 0.05 | J67: 0.0001507917162
B68: 1.85 | C68: 0.911649211 | D68: 0.8992716882 | E68: 0.1007283118 | F68: 0.003005787572 | H68: 0.001644134321 | I68: 0.1 | J68: 0.0003005787572
B69: 1.9 | C69: 0.9093729345 | D69: 0.8962759139 | E69: 0.1037240861 | F69: 0.00299577429 | H69: 0.001634565634 | I69: 0.15 | J69: 0.0004493661435
B70: 1.95 | C70: 0.9071023416 | D70: 0.8932901195 | E70: 0.1067098805 | F70: 0.002985794366 | H70: 0.001625052636 | I70: 0.2 | J70: 0.0005971588731
B71: 2 | C71: 0.904837418 | D71: 0.8903142718 | E71: 0.1096857282 | F71: 0.002975847687 | G71: =C71*D71*0.25 -> 0.2013974167 | H71: 0.001615595003 | I71: 0 | J71: 0
B72: 2.05 | C72: 0.9025781498 | D72: =D71*EXP(-0.05*HazardRate3) -> 0.8865223613 | E72: 0.1134776387 | F72: 0.003791910513 | H72: 0.002053497345 | I72: 0.05 | J72: 0.0001895955257
B73: 2.1 | C73: 0.9003245226 | D73: 0.8827466008 | E73: 0.1172533992 | F73: 0.003775760502 | H73: 0.002039645863 | I73: 0.1 | J73: 0.0003775760502
B74: 2.15 | C74: 0.8980765225 | D74: 0.8789869215 | E74: 0.1210130785 | F74: 0.003759679275 | H74: 0.002025887813 | I74: 0.15 | J74: 0.0005639518913
B75: 2.2 | C75: 0.8958341353 | D75: 0.875243255 | E75: 0.124756745 | F75: 0.003743666539 | H75: 0.002012222566 | I75: 0.2 | J75: 0.0007487333079
B76: 2.25 | C76: 0.8935973471 | D76: 0.871515533 | E76: 0.128484467 | F76: 0.003727722003 | G76: =C76*D76*0.25 -> 0.1946959921 | H76: 0.001998649495 | I76: 0 | J76: 0
B77: 2.3 | C77: 0.8913661439 | D77: 0.8678036876 | E77: 0.1321963124 | F77: 0.003711845375 | H77: 0.001985167979 | I77: 0.05 | J77: 0.0001855922688
B78: 2.35 | C78: 0.8891405117 | D78: 0.8641076512 | E78: 0.1358923488 | F78: 0.003696036367 | H78: 0.0019717774 | I78: 0.1 | J78: 0.0003696036367
B79: 2.4 | C79: 0.8869204367 | D79: 0.8604273565 | E79: 0.1395726435 | F79: 0.003680294691 | H79: 0.001958477145 | I79: 0.15 | J79: 0.0005520442036
B80: 2.45 | C80: 0.8847059049 | D80: 0.8567627365 | E80: 0.1432372635 | F80: 0.003664620059 | H80: 0.001945266603 | I80: 0.2 | J80: 0.0007329240118
B81: 2.5 | C81: 0.8824969026 | D81: 0.8531137243 | E81: 0.1468862757 | F81: 0.003649012187 | G81: =C81*D81*0.25 -> 0.1882175548 | H81: 0.001932145171 | I81: 0 | J81: 0
B82: 2.55 | C82: 0.8802934158 | D82: 0.8494802535 | E82: 0.1505197465 | F82: 0.00363347079 | H82: 0.001919112248 | I82: 0.05 | J82: 0.0001816735395
B83: 2.6 | C83: 0.8780954309 | D83: 0.8458622579 | E83: 0.1541377421 | F83: 0.003617995585 | H83: 0.001906167235 | I83: 0.1 | J83: 0.0003617995585
B84: 2.65 | C84: 0.8759029341 | D84: 0.8422596716 | E84: 0.1577403284 | F84: 0.003602586289 | H84: 0.001893309541 | I84: 0.15 | J84: 0.0005403879434
B85: 2.7 | C85: 0.8737159117 | D85: 0.838672429 | E85: 0.161327571 | F85: 0.003587242623 | H85: 0.001880538575 | I85: 0.2 | J85: 0.0007174485247
B86: 2.75 | C86: 0.87153435 | D86: 0.8351004647 | E86: 0.1648995353 | F86: 0.003571964307 | G86: =C86*D86*0.25 -> 0.1819546852 | H86: 0.001867853754 | I86: 0 | J86: 0
B87: 2.8 | C87: 0.8693582354 | D87: 0.8315437136 | E87: 0.1684562864 | F87: 0.003556751062 | H87: 0.001855254496 | I87: 0.05 | J87: 0.0001778375531
B88: 2.85 | C88: 0.8671875543 | D88: 0.828002111 | E88: 0.171997889 | F88: 0.003541602612 | H88: 0.001842740224 | I88: 0.1 | J88: 0.0003541602612
B89: 2.9 | C89: 0.8650222931 | D89: 0.8244755923 | E89: 0.1755244077 | F89: 0.003526518679 | H89: 0.001830310365 | I89: 0.15 | J89: 0.0005289778019
B90: 2.95 | C90: 0.8628624383 | D90: 0.8209640934 | E90: 0.1790359066 | F90: 0.003511498991 | H90: 0.001817964349 | I90: 0.2 | J90: 0.0007022997981
B91: 3 | C91: 0.8607079764 | D91: 0.8174675501 | E91: 0.1825324499 | F91: 0.003496543272 | G91: =C91*D91*0.25 -> 0.1759002102 | H91: 0.00180570161 | I91: 0 | J91: 0
B92: 3.05 | C92: 0.858558894 | D92: =D91*EXP(-0.05*HazardRate4) -> 0.8131483829 | E92: 0.1868516171 | F92: 0.004319167138 | H92: 0.002224955616 | I92: 0.05 | J92: 0.0002159583569
B93: 3.1 | C93: 0.8564151775 | D93: 0.8088520365 | E93: 0.1911479635 | F93: 0.00429634641 | H93: 0.002207673764 | I93: 0.1 | J93: 0.000429634641
B94: 3.15 | C94: 0.8542768136 | D94: 0.8045783903 | E94: 0.1954216097 | F94: 0.004273646257 | H94: 0.002190526144 | I94: 0.15 | J94: 0.0006410469386
B95: 3.2 | C95: =EXP(-IRate*B95) -> 0.852143789 | D95: 0.8003273242 | E95: =1-D95 -> 0.1996726758 | F95: 0.004251066043 | H95: 0.002173511715 | I95: 0.2 | J95: 0.0008502132085
B96: =B95+0.05 -> 3.25 | C96: 0.8500160902 | D96: 0.7960987191 | E96: 0.2039012809 | F96: =D95-D96 -> 0.004228605133 | G96: =C96*D96*0.25 -> 0.1691741802 | H96: =F96*C96*(1-Recovery) -> 0.002156629441 | I96: 0 | J96: 0
B97: 3.3 | C97: 0.8478937041 | D97: 0.7918924562 | E97: 0.2081075438 | F97: 0.004206262898 | H97: 0.002139878297 | I97: 0.05 | J97: 0.0002103131449
B98: 3.35 | C98: 0.8457766173 | D98: 0.7877084175 | E98: 0.2122915825 | F98: 0.00418403871 | H98: 0.002123257264 | I98: =I97+0.05 -> 0.1 | J98: 0.000418403871
B99: 3.4 | C99: 0.8436648166 | D99: 0.7835464856 | E99: 0.2164535144 | F99: 0.004161931946 | H99: 0.002106765331 | I99: 0.15 | J99: 0.0006242897918
B100: 3.45 | C100: 0.8415582888 | D100: 0.7794065436 | E100: 0.2205934564 | F100: 0.004139941984 | H100: 0.002090401495 | I100: 0.2 | J100: 0.0008279883969
B101: 3.5 | C101: 0.8394570208 | D101: 0.7752884754 | E101: 0.2247115246 | F101: 0.004118068209 | G101: =C101*D101*0.25 -> 0.1627053384 | H101: 0.002074164762 | I101: 0 | J101: =I101*F101 -> 0
B102: 3.55 | C102: 0.8373609993 | D102: 0.7711921654 | E102: 0.2288078346 | F102: 0.004096310006 | H102: 0.002058054144 | I102: 0.05 | J102: 0.0002048155003
B103: 3.6 | C103: 0.8352702114 | D103: 0.7671174986 | E103: 0.2328825014 | F103: 0.004074666765 | H103: 0.002042068662 | I103: 0.1 | J103: 0.0004074666765
B104: 3.65 | C104: 0.8331846439 | D104: 0.7630643607 | E104: 0.2369356393 | F104: 0.004053137877 | H104: 0.002026207344 | I104: 0.15 | J104: 0.0006079706816
B105: 3.7 | C105: 0.8311042839 | D105: 0.759032638 | E105: 0.240967362 | F105: 0.00403172274 | H105: 0.002010469224 | I105: 0.2 | J105: 0.000806344548
B106: 3.75 | C106: 0.8290291182 | D106: 0.7550222172 | E106: 0.2449777828 | F106: 0.004010420751 | G106: =C106*D106*0.25 -> 0.1564838507 | H106: 0.001994853347 | I106: 0 | J106: 0
B107: 3.8 | C107: 0.8269591339 | D107: 0.7510329859 | E107: 0.2489670141 | F107: 0.003989231314 | H107: 0.001979358764 | I107: 0.05 | J107: 0.0001994615657
B108: 3.85 | C108: 0.8248943182 | D108: 0.7470648321 | E108: 0.2529351679 | F108: 0.003968153833 | H108: 0.00196398453 | I108: 0.1 | J108: 0.0003968153833
B109: 3.9 | C109: 0.8228346581 | D109: 0.7431176444 | E109: 0.2568823556 | F109: 0.003947187717 | H109: 0.001948729713 | I109: 0.15 | J109: 0.0005920781575
B110: 3.95 | C110: 0.8207801406 | D110: 0.739191312 | E110: 0.260808688 | F110: 0.003926332377 | H110: 0.001933593384 | I110: 0.2 | J110: 0.0007852664754
B111: 4 | C111: 0.8187307531 | D111: 0.7352857248 | E111: 0.2647142752 | F111: 0.003905587229 | G111: =C111*D111*0.25 -> 0.1505002588 | H111: 0.001918574624 | I111: 0 | J111: 0
B112: 4.05 | C112: 0.8166864826 | D112: =D111*EXP(-0.05*HazardRate5) -> 0.730541857 | E112: 0.269458143 | F112: 0.00474386774 | H112: 0.002324551595 | I112: 0.05 | J112: 0.000237193387
B113: 4.1 | C113: 0.8146473164 | D113: 0.7258285954 | E113: 0.2741714046 | F113: 0.004713261568 | H113: 0.002303787533 | I113: 0.1 | J113: 0.0004713261568
B114: 4.15 | C114: 0.8126132418 | D114: 0.7211457426 | E114: 0.2788542574 | F114: 0.004682852859 | H114: 0.002283208946 | I114: 0.15 | J114: 0.0007024279289
B115: 4.2 | C115: 0.810584246 | D115: 0.7164931022 | E115: 0.2835068978 | F115: 0.00465264034 | H115: 0.002262814177 | I115: 0.2 | J115: 0.0009305280679
B116: 4.25 | C116: 0.8085603163 | D116: 0.7118704795 | E116: 0.2881295205 | F116: 0.004622622743 | G116: =C116*D116*0.25 -> 0.143897555 | H116: 0.002242601584 | I116: 0 | J116: 0
B117: 4.3 | C117: 0.8065414402 | D117: 0.7072776807 | E117: 0.2927223193 | F117: 0.004592798811 | H117: 0.002222569541 | I117: 0.05 | J117: 0.0002296399406
B118: 4.35 | C118: 0.8045276049 | D118: 0.7027145134 | E118: 0.2972854866 | F118: 0.004563167296 | H118: 0.002202716433 | I118: 0.1 | J118: 0.0004563167296
B119: 4.4 | C119: 0.802518798 | D119: 0.6981807864 | E119: 0.3018192136 | F119: 0.004533726956 | H119: 0.002183040664 | I119: 0.15 | J119: 0.0006800590434
B120: 4.45 | C120: 0.8005150068 | D120: 0.6936763099 | E120: 0.3063236901 | F120: 0.004504476556 | H120: 0.002163540649 | I120: 0.2 | J120: 0.0009008953113
B121: 4.5 | C121: 0.7985162188 | D121: 0.689200895 | E121: 0.310799105 | F121: 0.004475414873 | G121: =C121*D121*0.25 -> 0.1375845232 | H121: 0.002144214817 | I121: 0 | J121: 0
B122: 4.55 | C122: 0.7965224215 | D122: 0.6847543543 | E122: 0.3152456457 | F122: 0.004446540688 | H122: 0.002125061614 | I122: 0.05 | J122: 0.0002223270344
B123: 4.6 | C123: 0.7945336025 | D123: 0.6803365015 | E123: 0.3196634985 | F123: 0.004417852791 | H123: 0.002106079496 | I123: 0.1 | J123: 0.0004417852791
B124: 4.65 | C124: 0.7925497493 | D124: 0.6759471515 | E124: 0.3240528485 | F124: 0.004389349981 | H124: 0.002087266936 | I124: 0.15 | J124: 0.0006584024971
B125: 4.7 | C125: 0.7905708496 | D125: 0.6715861205 | E125: 0.3284138795 | F125: 0.004361031063 | H125: 0.00206862242 | I125: 0.2 | J125: 0.0008722062127
B126: 4.75 | C126: 0.788596891 | D126: 0.6672532256 | E126: 0.3327467744 | F126: 0.004332894852 | G126: =C126*D126*0.25 -> 0.1315484548 | H126: 0.002050144446 | I126: 0 | J126: 0
B127: 4.8 | C127: =EXP(-IRate*B127) -> 0.7866278611 | D127: 0.6629482855 | E127: 0.3370517145 | F127: 0.004304940168 | H127: 0.002031831526 | I127: 0.05 | J127: 0.0002152470084
B128: 4.85 | C128: =EXP(-IRate*B128) -> 0.7846637476 | D128: 0.6586711196 | E128: 0.3413288804 | F128: 0.00427716584 | H128: 0.002013682186 | I128: 0.1 | J128: 0.000427716584
B129: 4.9 | C129: =EXP(-IRate*B129) -> 0.7827045382 | D129: 0.6544215489 | E129: 0.3455784511 | F129: 0.004249570705 | H129: 0.001995694966 | I129: 0.15 | J129: 0.0006374356057
B130: 4.95 | C130: =EXP(-IRate*B130) -> 0.7807502208 | D130: 0.6501993953 | E130: 0.3498006047 | F130: 0.004222153606 | H130: 0.001977868416 | I130: 0.2 | J130: 0.0008444307212
B131: 5 | C131: =EXP(-IRate*B131) -> 0.7788007831 | D131: 0.6460044819 | E131: =1-D131 -> 0.3539955181 | F131: 0.004194913395 | G131: =C131*D131*0.25 -> 0.1257771991 | H131: 0.001960201102 | I131: 0.25 | J131: 0.001048728349

Sheet Spreadsheet10.3 (new)
B9: Credit Curve | G9: Default probability
B10: Recovery | C10: 0.4 | F10: Credit spread | G10: Actual | H10: Flat curve
B11: 1Y | C11: 250 | E11: 0 | F11: =CubicSpline($B$34:$B$38,$C$11:$C$15,E11) -> 169.8063378
B12: 3Y | C12: 400 | E12: =E11+0.05 -> 0.05 | F12: =CubicSpline($B$34:$B$38,$C$11:$C$15,E12) -> 173.6556666 | G12: =1-EXP(-E12*F12/(1-RecoveryRate)/10000) -> 0.001446083967 | H12: =1-EXP(-E12*fiveyrspread/(1-RecoveryRate)/10000) -> 0.004157998155
B13: 5Y | C13: 500 | E13: =E12+0.05 -> 0.1 | F13: =CubicSpline($B$34:$B$38,$C$11:$C$15,E13) -> 177.5296653 | G13: 0.002954454738 | H13: 0.008298707361
B14: 7Y | C14: 600 | E14: =E13+0.05 -> 0.15 | F14: 181.4270355 | G14: 0.004525405243 | H14: 0.01242219951
B15: 10Y | C15: 700 | E15: =E14+0.05 -> 0.2 | F15: 185.3464787 | G15: 0.006159170024 | H15: 0.01652854618
E16: =E14+0.05 -> 0.2 | F16: 185.3464787 | G16: 0.006159170024 | H16: 0.01652854618
E17: =E15+0.05 -> 0.25 | F17: 189.2866966 | G17: 0.00785592534 | H17: 0.02061781867
E18: =E16+0.05 -> 0.25 | F18: 189.2866966 | G18: 0.00785592534 | H18: 0.02061781867
E19: =E18+0.05 -> 0.3 | F19: 193.2463907 | G19: 0.009615789309 | H19: 0.02469008797
E20: 0.35 | F20: 197.2242626 | G20: 0.0114388221 | H20: 0.02874542479
E21: 0.4 | F21: 201.2190139 | G21: 0.01332502615 | H21: 0.03278389952
E22: 0.45 | F22: 205.2293463 | G22: 0.0152743465 | H22: 0.03680558228
E23: 0.5 | F23: 209.2539611 | G23: 0.01728667104 | H23: 0.04081054289
E24: 0.55 | F24: 213.2915602 | G24: 0.01936183096 | H24: 0.04479885088
E25: 0.6 | F25: 217.340845 | G25: 0.02149960112 | H25: 0.0487705755
E26: 0.65 | F26: 221.4005171 | G26: 0.02369970054 | H26: 0.05272578569
E27: 0.7 | F27: 225.4692781 | G27: 0.0259617929 | H27: 0.05666455013
E28: 0.75 | F28: 229.5458296 | G28: 0.02828548713 | H28: 0.06058693719
E29: 0.8 | F29: 233.6288732 | G29: 0.03067033794 | H29: 0.06449301497
E30: 0.85 | F30: 237.7171104 | G30: 0.03311584654 | H30: 0.06838285129
E31: 0.9 | F31: 241.8092429 | G31: 0.03562146129 | H31: 0.07225651367
E32: 0.95 | F32: 245.9039723 | G32: 0.03818657844 | H32: 0.07611406938
B33: 0 | C33: =fiveyrspread -> 500 | E33: 1 | F33: 250 | G33: 0.04081054289 | H33: 0.07995558537
B34: =LEFT(B11,LEN(B11)-1)*1 -> 1 | C34: 500 | E34: 1.05 | F34: 254.0960277 | G34: 0.04349264903 | H34: 0.08378112835
B35: =LEFT(B12,LEN(B12)-1)*1 -> 3 | C35: 500 | E35: 1.1 | F35: 258.1907571 | G35: 0.04623214158 | H35: 0.08759076473
B36: =LEFT(B13,LEN(B13)-1)*1 -> 5 | C36: 500 | E36: 1.15 | F36: 262.2828896 | G36: 0.04902821645 | H36: 0.09138456064
B37: =LEFT(B14,LEN(B14)-1)*1 -> 7 | C37: 500 | E37: 1.2 | F37: 266.3711268 | G37: 0.05188002171 | H37: 0.09516258196
B38: =LEFT(B15,LEN(B15)-1)*1 -> 10 | C38: 500 | E38: 1.25 | F38: 270.4541704 | G38: 0.05478665856 | H38: 0.09892489428
E39: 1.3 | F39: 274.5307219 | G39: 0.05774718227 | H39: 0.1026715629
E40: 1.35 | F40: 278.5994829 | G40: 0.06076060326 | H40: 0.1064026529
E41: 1.4 | F41: 282.659155 | G41: 0.06382588812 | H41: 0.110118229
E42: 1.45 | F42: 286.7084398 | G42: 0.06694196076 | H42: 0.1138183558
E43: 1.5 | F43: 290.7460389 | G43: 0.07010770346 | H43: 0.1175030974
E44: 1.55 | F44: 294.7706537 | G44: 0.07332195804 | H44: 0.1211725179
E45: 1.6 | F45: 298.7809861 | G45: 0.07658352705 | H45: 0.124826681
E46: 1.65 | F46: 302.7757374 | G46: 0.0798911749 | H46: 0.12846565
E47: 1.7 | F47: 306.7536093 | G47: 0.08324362912 | H47: 0.1320894882
E48: 1.75 | F48: 310.7133034 | G48: 0.08663958158 | H48: 0.1356982585
E49: 1.8 | F49: 314.6535213 | G49: 0.09007768968 | H49: 0.1392920236
E50: 1.85 | F50: 318.5729645 | G50: 0.09355657768 | H50: 0.1428708458
E51: 1.9 | F51: 322.4703347 | G51: 0.09707483792 | H51: 0.1464347872
E52: 1.95 | F52: 326.3443334 | G52: 0.1006310321 | H52: 0.1499839098
E53: 2 | F53: 330.1936622 | G53: 0.1042236926 | H53: 0.1535182751
E54: 2.05 | F54: 334.0170226 | G54: 0.1078513236 | H54: 0.1570379446
E55: 2.1 | F55: 337.8131164 | G55: 0.1115124028 | H55: 0.1605429792
E56: 2.15 | F56: 341.580645 | G56: 0.1152053821 | H56: 0.16403344
E57: 2.2 | F57: 345.3183101 | G57: 0.1189286895 | H57: 0.1675093874
E58: 2.25 | F58: 349.0248131 | G58: 0.12268073 | H58: 0.1709708818
E59: 2.3 | F59: 352.6988558 | G59: 0.1264598868 | H59: 0.1744179834
E60: 2.35 | F60: 356.3391397 | G60: 0.1302645231 | H60: 0.1778507519
E61: 2.4 | F61: 359.9443664 | G61: 0.1340929827 | H61: 0.1812692469
E62: 2.45 | F62: 363.5132374 | G62: 0.137943592 | H62: 0.1846735279
E63: 2.5 | F63: 367.0444544 | G63: 0.1418146604 | H63: 0.1880636538
E64: 2.55 | F64: 370.5367189 | G64: 0.1457044823 | H64: 0.1914396837
E65: 2.6 | F65: 373.9887325 | G65: 0.1496113376 | H65: 0.194801676
E66: 2.65 | F66: 377.3991969 | G66: 0.1535334935 | H66: 0.1981496891
E67: 2.7 | F67: 380.7668135 | G67: 0.1574692055 | H67: 0.2014837812
E68: 2.75 | F68: 384.090284 | G68: 0.1614167181 | H68: 0.2048040102
E69: 2.8 | F69: 387.3683099 | G69: 0.1653742665 | H69: 0.2081104337
E70: 2.85 | F70: 390.5995929 | G70: 0.1693400774 | H70: 0.211403109
E71: 2.9 | F71: 393.7828346 | G71: 0.1733123701 | H71: 0.2146820934
E72: 2.95 | F72: 396.9167364 | G72: 0.1772893574 | H72: 0.2179474438
E73: 3 | F73: 400 | G73: 0.1812692469 | H73: 0.2211992169
E74: 3.05 | F74: 403.0318436 | G74: 0.1852504556 | H74: 0.2244374691
E75: 3.1 | F75: 406.0135567 | G75: 0.1892322745 | H75: 0.2276622567
E76: 3.15 | F76: 408.9469408 | G76: =1-EXP(-E76*F76/(1-RecoveryRate)/10000) -> 0.1932142569 | H76: =1-EXP(-E76*fiveyrspread/(1-RecoveryRate)/10000) -> 0.2308736356
E77: 3.2 | F77: =CubicSpline($B$34:$B$38,$C$11:$C$15,E77) -> 411.8338034 | G77: 0.1971960125 | H77: 0.2340716616
E78: 3.25 | F78: 414.6759464 | G78: 0.2011772021 | H78: 0.2372563903
E79: 3.3 | F79: 417.4751758 | G79: 0.2051575394 | H79: 0.2404278768
E80: 3.35 | F80: 420.2332969 | G80: 0.2091367886 | H80: 0.2435861763
E81: 3.4 | F81: 422.9521126 | G81: 0.2131147624 | H81: 0.2467313435
E82: =E81+0.05 -> 3.45 | F82: 425.6334291 | G82: 0.2170913228 | H82: 0.2498634332
E83: 3.5 | F83: 428.2790494 | G83: 0.2210663776 | H83: 0.2529824997
E84: 3.55 | F84: 430.890779 | G84: 0.2250398815 | H84: 0.2560885971
E85: 3.6 | F85: 433.4704228 | G85: 0.2290118334 | H85: 0.2591817793
E86: 3.65 | F86: 436.0197844 | G86: 0.2329822754 | H86: 0.2622621001
E87: 3.7 | F87: 438.5406692 | G87: 0.2369512923 | H87: 0.2653296129
E88: 3.75 | F88: 441.0348813 | G88: 0.2409190098 | H88: 0.2683843711
E89: 3.8 | F89: 443.5042407 | G89: 0.2448856008 | H89: 0.2714264275
E90: 3.85 | F90: 445.9505063 | G90: 0.248851248 | H90: 0.2744558351
E91: 3.9 | F91: 448.3755283 | G91: 0.2528162151 | H91: 0.2774726464
E92: 3.95 | F92: 450.7810808 | G92: 0.2567807658 | H92: 0.2804769138
E93: 4 | F93: 453.1690142 | G93: 0.2607452362 | H93: 0.2834686894
E94: 4.05 | F94: 455.5410872 | G94: 0.2647099516 | H94: 0.2864480253
E95: 4.1 | F95: 457.8991198 | G95: 0.2686753 | H95: 0.2894149731
E96: 4.15 | F96: 460.2449166 | G96: 0.272641694 | H96: 0.2923695843
E97: 4.2 | F97: 462.5802818 | G97: 0.2766095762 | H97: 0.2953119103
E98: 4.25 | F98: 464.9070203 | G98: 0.2805794189 | H98: 0.2982420021
E99: 4.3 | F99: 467.2269367 | G99: 0.2845517225 | H99: 0.3011599105
E100: 4.35 | F100: 469.5418354 | G100: 0.2885270146 | H100: 0.3040656863
E101: 4.4 | F101: 471.853529 | G101: 0.2925058523 | H101: 0.3069593799
E102: 4.45 | F102: 474.1637986 | G102: 0.2964888012 | H102: 0.3098410415
E103: 4.5 | F103: 476.4744719 | G103: 0.3004764748 | H103: 0.3127107212
E104: 4.55 | F104: 478.7873459 | G104: 0.3044694922 | H104: 0.3155684688
E105: 4.6 | F105: 481.1042254 | G105: 0.308468498 | H105: 0.3184143338
E106: 4.65 | F106: 483.4269146 | G106: 0.312474156 | H106: 0.3212483657
E107: 4.7 | F107: 485.7572222 | G107: 0.3164871509 | H107: 0.3240706138
E108: 4.75 | F108: 488.0969411 | G108: 0.3205081763 | H108: 0.3268811269
E109: 4.8 | F109: 490.4478874 | G109: 0.3245379541 | H109: 0.329679954
E110: 4.85 | F110: 492.8118638 | G110: 0.3285772137 | H110: 0.3324671435
E111: 4.9 | F111: 495.190669 | G111: 0.3326266957 | H111: 0.3352427439
E112: 4.95 | F112: 497.5861136 | G112: 0.3366871592 | H112: 0.3380068033
E113: 5 | F113: 500 | G113: 0.3407593698 | H113: 0.3407593698
E114: 5.05 | F114: 502.433627 | G114: 0.3448438246 | H114: 0.3435004911
E115: 5.1 | F115: 504.8862675 | G115: 0.3489399038 | H115: 0.3462302149
E116: 5.15 | F116: 507.3566902 | G116: 0.3530466953 | H116: 0.3489485884
E117: 5.2 | F117: 509.8436618 | G117: 0.3571632705 | H117: 0.351655659
E118: 5.25 | F118: 512.3459507 | G118: 0.3612886875 | H118: 0.3543514736
E119: 5.3 | F119: 514.8623241 | G119: 0.3654219905 | H119: 0.357036079
E120: 5.35 | F120: 517.3915492 | G120: 0.3695622112 | H120: 0.3597095218
E121: 5.4 | F121: 519.9323944 | G121: 0.3737083708 | H121: 0.3623718484
E122: 5.45 | F122: 522.4836266 | G122: 0.3778594793 | H122: 0.3650231051
E123: 5.5 | F123: 525.0440141 | G123: 0.3820145381 | H123: 0.3676633378
E124: 5.55 | F124: 527.612324 | G124: 0.3861725398 | H124: 0.3702925925
E125: 5.6 | F125: 530.1873239 | G125: 0.3903324695 | H125: 0.3729109147
E126: 5.65 | F126: 532.7677817 | G126: 0.3944933062 | H126: 0.37551835
E127: 5.7 | F127: 535.3524647 | G127: 0.3986540232 | H127: 0.3781149435
E128: 5.75 | F128: 537.9401408 | G128: 0.4028135891 | H128: 0.3807007405
E129: 5.8 | F129: 540.5295775 | G129: 0.4069709689 | H129: 0.3832757856
E130: 5.85 | F130: 543.1195422 | G130: 0.4111251247 | H130: 0.3858401238
E131: 5.9 | F131: 545.7088028 | G131: 0.4152750166 | H131: 0.3883937994
E132: 5.95 | F132: 548.2961268 | G132: 0.4194196036 | H132: 0.3909368569
E133: 6 | F133: 550.8802817 | G133: 0.4235578445 | H133: 0.3934693403
E134: 6.05 | F134: 553.4600352 | G134: 0.4276886985 | H134: 0.3959912937
E135: 6.1 | F135: 556.034155 | G135: 0.431811126 | H135: 0.3985027607
E136: 6.15 | F136: 558.6014084 | G136: 0.4359240896 | H136: 0.4010037851
E137: 6.2 | F137: 561.1605634 | G137: 0.4400265547 | H137: 0.4034944103
E138: 6.25 | F138: 563.7103873 | G138: 0.4441174901 | H138: 0.4059746794
E139: 6.3 | F139: 566.2496479 | G139: 0.4481958687 | H139: 0.4084446356
E140: 6.35 | F140: 568.7771127 | G140: =1-EXP(-E140*F140/(1-RecoveryRate)/10000) -> 0.4522606685 | H140: =1-EXP(-E140*fiveyrspread/(1-RecoveryRate)/10000) -> 0.4109043217
E141: 6.4 | F141: =CubicSpline($B$34:$B$38,$C$11:$C$15,E141) -> 571.2915493 | G141: 0.4563108726 | H141: 0.4133537805
E142: 6.45 | F142: 573.7917253 | G142: 0.4603454707 | H142: 0.4157930544
E143: 6.5 | F143: 576.2764085 | G143: 0.4643634587 | H143: 0.4182221858
E144: 6.55 | F144: 578.7443662 | G144: 0.4683638399 | H144: 0.4206412169
E145: 6.6 | F145: 581.1943662 | G145: 0.4723456252 | H145: 0.4230501896
E146: =E145+0.05 -> 6.65 | F146: 583.6251761 | G146: 0.476307834 | H146: 0.4254491459
E147: 6.7 | F147: 586.0355634 | G147: 0.4802494942 | H147: 0.4278381273
E148: 6.75 | F148: 588.4242958 | G148: 0.4841696428 | H148: 0.4302171753
E149: 6.8 | F149: 590.7901408 | G149: 0.4880673265 | H149: 0.4325863312
E150: 6.85 | F150: 593.1318662 | G150: 0.4919416016 | H150: 0.4349456362
E151: 6.9 | F151: 595.4482394 | G151: 0.495791535 | H151: 0.4372951312
E152: 6.95 | F152: 597.7380282 | G152: 0.4996162038 | H152: 0.439634857
E153: 7 | F153: 600 | G153: 0.5034146962 | H153: 0.4419648542
E154: 7.05 | F154: 602.2332081 | G154: 0.5071862767 | H154: 0.4442851633
E155: 7.1 | F155: 604.437853 | G155: 0.5109308847 | H155: 0.4465958246
E156: 7.15 | F156: 606.614415 | G156: 0.5146486309 | H156: 0.4488968781
E157: 7.2 | F157: 608.7633802 | G157: 0.5183396379 | H157: 0.4511883639
E158: 7.25 | F158: 610.8852328 | G158: 0.5220040358 | H158: 0.4534703217
E159: 7.3 | F159: 612.9804584 | G159: 0.5256419635 | H159: 0.4557427911
E160: 7.35 | F160: 615.0495381 | G160: 0.5292535649 | H160: 0.4580058115
E161: 7.4 | F161: 617.0929577 | G161: 0.5328389941 | H161: 0.4602594224
E162: 7.45 | F162: 619.1112012 | G162: 0.5363984117 | H162: 0.4625036627
E163: 7.5 | F163: 621.104754 | G163: 0.5399319853 | H163: 0.4647385715
E164: 7.55 | F164: 623.0740979 | G164: 0.5434398876 | H164: 0.4669641875
E165: 7.6 | F165: 625.0197182 | G165: 0.5469222991 | H165: 0.4691805494
E166: 7.65 | F166: 626.9421297 | G166: 0.5503794236 | H166: 0.4713876957
E167: 7.7 | F167: 628.8417257 | G167: 0.5538114007 | H167: 0.4735856647
E168: 7.75 | F168: 630.7190802 | G168: 0.5572184793 | H168: 0.4757744946
E169: 7.8 | F169: 632.5746478 | G169: 0.560600845 | H169: 0.4779542232
E170: 7.85 | F170: 634.4088827 | G170: 0.5639586882 | H170: 0.4801248886
E171: 7.9 | F171: 636.2223594 | G171: 0.5672922725 | H171: 0.4822865284
E172: 7.95 | F172: 638.0154711 | G172: 0.5706017629 | H172: 0.48443918
E173: 8 | F173: 639.7887324 | G173: 0.5738873978 | H173: 0.486582881
E174: 8.05 | F174: 641.5426279 | G174: 0.5771494022 | H174: 0.4887176684
E175: 8.1 | F175: 643.277641 | G175: 0.5803880047 | H175: 0.4908435794
E176: 8.15 | F176: 644.9942563 | G176: 0.5836034377 | H176: 0.4929606508
E177: 8.2 | F177: 646.6929579 | G177: 0.5867959371 | H177: 0.4950689195
E178: 8.25 | F178: 648.3742299 | G178: 0.5899657418 | H178: 0.497168422
E179: 8.3 | F179: 650.0385565 | G179: 0.5931130935 | H179: 0.4992591948
E180: 8.35 | F180: 651.6864218 | G180: 0.5962382369 | H180: 0.5013412741
E181: 8.4 | F181: 653.3183406 | G181: 0.5993414364 | H181: 0.5034146962
E182: 8.45 | F182: 654.9347052 | G182: 0.6024228901 | H182: 0.505479497
E183: 8.5 | F183: 656.5360917 | G183: 0.6054829012 | H183: 0.5075357123
E184: 8.55 | F184: 658.1229534 | G184: 0.6085217061 | H184: 0.5095833779
E185: 8.6 | F185: 659.6957748 | G185: 0.6115395608 | H185: 0.5116225293
E186: 8.65 | F186: 661.2550397 | G186: 0.6145367221 | H186: 0.513653202
E187: 8.7 | F187: 662.8012326 | G187: 0.617513449 | H187: 0.515675431
E188: 8.75 | F188: 664.3348372 | G188: 0.6204700014 | H188: 0.5176892517
E189: 8.8 | F189: 665.8563382 | G189: 0.6234066406 | H189: 0.5196946989
E190: 8.85 | F190: 667.3662192 | G190: 0.6263236286 | H190: 0.5216918075
E191: 8.9 | F191: 668.864965 | G191: 0.6292212287 | H191: 0.523680612
E192: 8.95 | F192: 670.353059 | G192: 0.6320997043 | H192: 0.5256611472
E193: 9 | F193: 671.8309861 | G193: 0.6349593199 | H193: 0.5276334473
E194: 9.05 | F194: 673.2992298 | G194: 0.6378003398 | H194: 0.5295975465
E195: 9.1 | F195: 674.7582749 | G195: 0.6406230292 | H195: 0.531553479
E196: 9.15 | F196: 676.2086048 | G196: 0.6434276528 | H196: 0.5335012788
E197: 9.2 | F197: 677.6507198 | G197: 0.6462144842 | H197: 0.5354409796
E198: 9.25 | F198: 679.0850573 | G198: 0.6489837628 | H198: 0.5373726152
E199: 9.3 | F199: 680.512148 | G199: 0.6517357782 | H199: 0.539296219
E200: 9.35 | F200: 681.9324605 | G200: 0.6544707862 | H200: 0.5412118245
E201: 9.4 | F201: 683.346479 | G201: 0.6571890502 | H201: 0.5431194649
E202: 9.45 | F202: 684.7546876 | G202: 0.6598908328 | H202: 0.5450191733
E203: 9.5 | F203: 686.1575706 | G203: 0.6625763962 | H203: 0.5469109827
E204: 9.55 | F204: 687.5556119 | G204: =1-EXP(-E204*F204/(1-RecoveryRate)/10000) -> 0.6652460013 | H204: =1-EXP(-E204*fiveyrspread/(1-RecoveryRate)/10000) -> 0.548794926
E205: 9.6 | F205: =CubicSpline($B$34:$B$38,$C$11:$C$15,E205) -> 688.9493036 | G205: 0.667899912 | H205: 0.5506710359
E206: 9.65 | F206: 690.3391066 | G206: 0.6705383751 | H206: 0.5525393449
E207: 9.7 | F207: 691.7255282 | G207: 0.6731616602 | H207: 0.5543998855
E208: 9.75 | F208: 693.109045 | G208: 0.6757700193 | H208: 0.5562526899
... 5 more rows
